fUST/lending_fUST_20250717
["ID","MTS","AMOUNT","RATE_DAILY","PERIOD"]
[372561397,1752683445436,-460.0,0.00020273,2]
[372561398,1752683445445,-460.0,0.00020273,2]
[372561399,1752683445455,-460.0,0.00020273,2]
[372561400,1752683445464,-460.0,0.00020273,2]
[372561401,1752683445474,-671.12,0.00020273,2]
[372561402,1752683445483,-175.44488167,0.00020273,2]
[372561403,1752683445493,-460.0,0.00020273,2]
[372561404,1752683445504,-507.88,0.00020273,2]
[372561405,1752683445513,-642.42,0.00020273,2]
[372561406,1752683445522,-460.0,0.00020273,2]
[372561407,1752683445533,-460.0,0.00020273,2]
[372561408,1752683445542,-460.0,0.00020273,2]
[372561409,1752683445552,-460.0,0.00020273,2]
[372561410,1752683445561,-460.0,0.00020273,2]
[372561411,1752683445571,-460.0,0.00020273,2]
[372561412,1752683445580,-460.0,0.00020273,2]
[372561413,1752683445590,-460.0,0.00020273,2]
[372561414,1752683445599,-460.0,0.00020273,2]
[372561415,1752683445609,-460.0,0.00020273,2]
[372561416,1752683445618,-460.0,0.00020273,2]
[372561417,1752683445628,-1119.43,0.00020273,2]
[372561418,1752683445637,-374.4468854,0.00020273,2]
[372561419,1752683445647,-812.21,0.00020273,2]
[372561421,1752683445656,-978.5,0.00020273,2]
[372561423,1752683445665,-918.14,0.00020273,2]
[372561425,1752683445675,-460.0,0.00020273,2]
[372561427,1752683445684,-460.0,0.00020273,2]
[372561429,1752683445696,-460.0,0.00020273,2]
[372561430,1752683445711,-460.0,0.00020273,2]
[372561431,1752683445721,-460.0,0.00020273,2]
[372561432,1752683445732,-460.0,0.00020273,2]
[372561433,1752683445742,-460.0,0.00020273,2]
[372561434,1752683445751,-871.14,0.00020273,2]
[372561435,1752683445762,-460.0,0.00020273,2]
[372561436,1752683445773,-2147.49951982,0.00020314,3]
[372561437,1752683445782,-500.0,0.00020325,2]
[372561438,1752683445793,-160.0,0.0002045,2]
[372561439,1752683445803,-2147.49951982,0.00020521,3]
[372561440,1752683445813,-500.0,0.00020541,2]
[372561441,1752683445822,-572.3052284,0.00020541,2]
[372561442,1752683445832,-500.0,0.00020541,2]
[372561443,1752683445842,-246.86491522,0.00020547,2]
[372561444,1752683445851,-460.0,0.00020547,2]
[372561445,1752683445861,-460.0,0.00020547,2]
[372561446,1752683445871,-460.0,0.00020547,2]
[372561447,1752683445880,-561.4,0.00020547,2]
[372561448,1752683445890,-460.0,0.00020547,2]
[372561449,1752683445934,-460.0,0.00020547,2]
[372561450,1752683445944,-460.0,0.00020547,2]
[372561451,1752683445953,-460.0,0.00020547,2]
[372561452,1752683445963,-460.0,0.00020547,2]
[372561453,1752683445972,-460.0,0.00020547,2]
[372561454,1752683445982,-568.52,0.00020547,2]
[372561455,1752683445991,-460.0,0.00020547,2]
[372561456,1752683446000,-460.0,0.00020547,2]
[372561457,1752683446011,-460.0,0.00020547,2]
[372561458,1752683446021,-460.0,0.00020547,2]
[372561459,1752683446030,-460.0,0.00020547,2]
[372561460,1752683446043,-460.0,0.00020547,2]
[372561461,1752683446053,-460.0,0.00020547,2]
[372561462,1752683446062,-460.0,0.00020547,2]
[372561463,1752683446071,-7344.43,0.00020547,2]
[372561464,1752683446081,-460.0,0.00020547,2]
[372561465,1752683446091,-483.68,0.00020547,2]
[372561466,1752683446100,-500.0,0.00020547,2]
[372561467,1752683446109,-500.0,0.00020547,2]
[372561468,1752683446119,-613.28531205,0.00020547,2]
[372561469,1752683446128,-460.0,0.00020547,2]
[372561470,1752683446138,-822.73,0.00020547,2]
[372561471,1752683446147,-460.0,0.00020547,2]
[372561472,1752683446157,-460.0,0.00020547,2]
[372561473,1752683446167,-460.0,0.00020547,2]
[372561474,1752683446176,-460.0,0.00020547,2]
[372561475,1752683446186,-460.0,0.00020547,2]
[372561477,1752683446196,-460.0,0.00020547,2]
[372561479,1752683446206,-460.0,0.00020547,2]
[372561481,1752683446215,-460.0,0.00020547,2]
[372561483,1752683446226,-839.28,0.00020547,2]
[372561485,1752683446236,-531.08,0.00020547,2]
[372561487,1752683446246,-460.0,0.00020547,2]
[372561489,1752683446255,-460.0,0.00020547,2]
[372561491,1752683446265,-460.0,0.00020547,2]
[372561493,1752683446275,-519.32,0.00020547,2]
[372561495,1752683446284,-897.77,0.00020547,2]
[372561497,1752683446294,-1351.27,0.00020547,2]
[372561499,1752683446304,-460.0,0.00020547,2]
[372561501,1752683446314,-460.0,0.00020547,2]
[372561503,1752683446323,-460.0,0.00020547,2]
[372561505,1752683446332,-460.0,0.00020547,2]
[372561507,1752683446343,-460.0,0.00020547,2]
[372561509,1752683446352,-460.0,0.00020547,2]
[372561511,1752683446362,-460.0,0.00020547,2]
[372561513,1752683446372,-472.36,0.00020547,2]
[372561515,1752683446382,-460.0,0.00020547,2]
[372561517,1752683446392,-2878.64,0.00020547,2]
[372561519,1752683446402,-460.0,0.00020547,2]
[372561521,1752683446411,-460.0,0.00020547,2]
[372561523,1752683446421,-1504.78,0.00020547,2]
[372561525,1752683446430,-2641.85,0.00020547,2]
[372561527,1752683446443,-460.0,0.00020547,2]
[372561529,1752683446453,-460.0,0.00020547,2]
[372561531,1752683446463,-460.0,0.00020547,2]
[372561533,1752683446474,-671.12,0.00020547,2]
[372561535,1752683446485,-460.0,0.00020547,2]
[372561537,1752683446499,-642.42,0.00020547,2]
[372561539,1752683446516,-507.88,0.00020547,2]
[372561541,1752683446526,-460.0,0.00020547,2]
[372561543,1752683446536,-460.0,0.00020547,2]
[372561545,1752683446546,-460.0,0.00020547,2]
[372561547,1752683446556,-460.0,0.00020547,2]
[372561549,1752683446566,-460.0,0.00020547,2]
[372561551,1752683446576,-460.0,0.00020547,2]
[372561553,1752683446585,-460.0,0.00020547,2]
[372561555,1752683446595,-460.0,0.00020547,2]
[372561557,1752683446605,-460.0,0.00020547,2]
[372561559,1752683446615,-460.0,0.00020547,2]
[372561561,1752683446624,-460.0,0.00020547,2]
[372561563,1752683446633,-1119.43,0.00020547,2]
[372561565,1752683446642,-812.21,0.00020547,2]
[372561567,1752683446652,-978.5,0.00020547,2]
[372561569,1752683446661,-918.14,0.00020547,2]
[372561571,1752683446670,-460.0,0.00020547,2]
[372561573,1752683446681,-460.0,0.00020547,2]
[372561575,1752683446691,-460.0,0.00020547,2]
[372561577,1752683446704,-460.0,0.00020547,2]
[372561579,1752683446714,-460.0,0.00020547,2]
[372561581,1752683446723,-460.0,0.00020547,2]
[372561583,1752683446733,-460.0,0.00020547,2]
[372561585,1752683446744,-871.14,0.00020547,2]
[372561587,1752683446754,-460.0,0.00020547,2]
[372561589,1752683446764,-500.0,0.00020558,2]
[372561591,1752683446776,-500.0,0.00020558,2]
[372561593,1752683446785,-500.0,0.00020619,2]
[372561595,1752683446795,-500.0,0.00020619,2]
[372561597,1752683446805,-420.0,0.00020708,2]
[372561599,1752683446814,-2147.49951982,0.00020728,3]
[372561601,1752683446824,-2000.0,0.00020816,2]
[372561603,1752683446834,-460.0,0.00020821,2]
[372561605,1752683446843,-460.0,0.00020821,2]
[372561607,1752683446853,-460.0,0.00020821,2]
[372561609,1752683446863,-196.88,0.00020821,2]
[372561611,1752683446874,-460.0,0.00020821,2]
[372561613,1752683446883,-460.0,0.00020821,2]
[372561615,1752683446892,-460.0,0.00020821,2]
[372561617,1752683446902,-460.0,0.00020821,2]
[372561619,1752683446913,-460.0,0.00020821,2]
[372561621,1752683446922,-460.0,0.00020821,2]
[372561623,1752683446932,-460.0,0.00020821,2]
[372561625,1752683446941,-460.0,0.00020821,2]
[372561627,1752683446951,-460.0,0.00020821,2]
[372561629,1752683446960,-460.0,0.00020821,2]
[372561632,1752683446970,-460.0,0.00020821,2]
[372561634,1752683446980,-7344.43,0.00020821,2]
[372561636,1752683446990,-460.0,0.00020821,2]
[372561637,1752683446999,-460.0,0.00020821,2]
[372561638,1752683447010,-822.73,0.00020821,2]
[372561640,1752683447020,-460.0,0.00020821,2]
[372561641,1752683447029,-460.0,0.00020821,2]
[372561642,1752683447039,-460.0,0.00020821,2]
[372561644,1752683447048,-460.0,0.00020821,2]
[372561646,1752683447058,-460.0,0.00020821,2]
[372561647,1752683447069,-460.0,0.00020821,2]
[372561648,1752683447080,-460.0,0.00020821,2]
[372561649,1752683447090,-460.0,0.00020821,2]
[372561650,1752683447100,-839.28,0.00020821,2]
[372561651,1752683447109,-460.0,0.00020821,2]
[372561652,1752683447119,-460.0,0.00020821,2]
[372561653,1752683447128,-275.08,0.00020821,2]
[372561654,1752683447137,-519.32,0.00020821,2]
[372561655,1752683447147,-897.77,0.00020821,2]
[372561656,1752683447156,-1351.27,0.00020821,2]
[372561657,1752683447167,-460.0,0.00020821,2]
[372561658,1752683447176,-460.0,0.00020821,2]
[372561659,1752683447187,-460.0,0.00020821,2]
[372561660,1752683447196,-460.0,0.00020821,2]
[372561661,1752683447205,-460.0,0.00020821,2]
[372561662,1752683447215,-209.52,0.00020821,2]
[372561663,1752683447225,-460.0,0.00020821,2]
[372561664,1752683447234,-472.36,0.00020821,2]
[372561665,1752683447244,-460.0,0.00020821,2]
[372561666,1752683447253,-2878.64,0.00020821,2]
[372561667,1752683447264,-460.0,0.00020821,2]
[372561668,1752683447273,-460.0,0.00020821,2]
[372561669,1752683447283,-1504.78,0.00020821,2]
[372561670,1752683447292,-2641.85,0.00020821,2]
[372561671,1752683447302,-460.0,0.00020821,2]
[372561672,1752683447312,-466.76,0.00020821,2]
[372561673,1752683447323,-460.0,0.00020821,2]
[372561674,1752683447333,-671.12,0.00020821,2]
[372561675,1752683447342,-460.0,0.00020821,2]
[372561676,1752683447352,-642.42,0.00020821,2]
[372561677,1752683447362,-507.88,0.00020821,2]
[372561678,1752683447372,-460.0,0.00020821,2]
[372561679,1752683447382,-460.0,0.00020821,2]
[372561680,1752683447392,-460.0,0.00020821,2]
[372561681,1752683447401,-460.0,0.00020821,2]
[372561682,1752683447417,-460.0,0.00020821,2]
[372561683,1752683447431,-460.0,0.00020821,2]
[372561684,1752683447440,-460.0,0.00020821,2]
[372561685,1752683447450,-460.0,0.00020821,2]
[372561686,1752683447460,-460.0,0.00020821,2]
[372561688,1752683447470,-460.0,0.00020821,2]
[372561689,1752683447480,-460.0,0.00020821,2]
[372561691,1752683447490,-1119.43,0.00020821,2]
[372561692,1752683447499,-812.21,0.00020821,2]
[372561693,1752683447511,-978.5,0.00020821,2]
[372561694,1752683447522,-918.14,0.00020821,2]
[372561695,1752683447532,-460.0,0.00020821,2]
[372561696,1752683447543,-460.0,0.00020821,2]
[372561697,1752683447553,-460.0,0.00020821,2]
[372561698,1752683447564,-460.0,0.00020821,2]
[372561699,1752683447573,-460.0,0.00020821,2]
[372561700,1752683447583,-460.0,0.00020821,2]
[372561701,1752683447593,-460.0,0.00020821,2]
[372561702,1752683447602,-871.14,0.00020821,2]
[372561703,1752683447612,-504.6356854,0.00020873,2]
[372561704,1752683447621,-2147.49951982,0.00020934,4]
[372561705,1752683447631,-260.0,0.00020998,2]
[372561706,1752683447641,-1097.474,0.00021033,2]
[372561707,1752683447651,-1000.0,0.00021089,2]
[372561708,1752683447868,-1000.0,0.00021089,2]
[372561709,1752683447878,-499.13,0.00021095,2]
[372561710,1752683447888,-460.0,0.00021095,2]
[372561711,1752683447898,-460.0,0.00021095,2]
[372561712,1752683447908,-460.0,0.00021095,2]
[372561713,1752683447918,-460.0,0.00021095,2]
[372561714,1752683447928,-460.0,0.00021095,2]
[372561715,1752683447937,-460.0,0.00021095,2]
[372561716,1752683447947,-460.0,0.00021095,2]
[372561717,1752683447956,-460.0,0.00021095,2]
[372561718,1752683447966,-460.0,0.00021095,2]
[372561719,1752683447975,-460.0,0.00021095,2]
[372561720,1752683447985,-460.0,0.00021095,2]
[372561721,1752683447994,-189.64,0.00021095,2]
[372561722,1752683448004,-7344.43,0.00021095,2]
[372561723,1752683448015,-460.0,0.00021095,2]
[372561724,1752683448025,-460.0,0.00021095,2]
[372561725,1752683448035,-822.73,0.00021095,2]
[372561726,1752683448045,-460.0,0.00021095,2]
[372561727,1752683448054,-460.0,0.00021095,2]
[372561728,1752683448064,-460.0,0.00021095,2]
[372561729,1752683448075,-460.0,0.00021095,2]
[372561730,1752683448085,-460.0,0.00021095,2]
[372561731,1752683448099,-460.0,0.00021095,2]
[372561732,1752683448110,-460.0,0.00021095,2]
[372561733,1752683448120,-460.0,0.00021095,2]
[372561734,1752683448131,-839.28,0.00021095,2]
[372561735,1752683448141,-460.0,0.00021095,2]
[372561736,1752683448151,-189.19,0.00021095,2]
[372561737,1752683448162,-519.32,0.00021095,2]
[372561738,1752683448172,-897.77,0.00021095,2]
[372561739,1752683448183,-1351.27,0.00021095,2]
[372561740,1752683448193,-460.0,0.00021095,2]
[372561741,1752683448203,-460.0,0.00021095,2]
[372561742,1752683448214,-182.06,0.00021095,2]
[372561743,1752683448224,-460.0,0.00021095,2]
[372561744,1752683448234,-460.0,0.00021095,2]
[372561745,1752683448245,-460.0,0.00021095,2]
[372561746,1752683448255,-472.36,0.00021095,2]
[372561747,1752683448265,-460.0,0.00021095,2]
[372561748,1752683448275,-2878.64,0.00021095,2]
[372561749,1752683448286,-460.0,0.00021095,2]
[372561750,1752683448296,-460.0,0.00021095,2]
[372561751,1752683448306,-1504.78,0.00021095,2]
[372561752,1752683448316,-2641.85,0.00021095,2]
[372561753,1752683448327,-460.0,0.00021095,2]
[372561754,1752683448338,-460.0,0.00021095,2]
[372561755,1752683448348,-671.12,0.00021095,2]
[372561756,1752683448359,-460.0,0.00021095,2]
[372561757,1752683448369,-642.42,0.00021095,2]
[372561758,1752683448379,-507.88,0.00021095,2]
[372561759,1752683448389,-460.0,0.00021095,2]
[372561760,1752683448399,-460.0,0.00021095,2]
[372561761,1752683448410,-460.0,0.00021095,2]
[372561762,1752683448420,-460.0,0.00021095,2]
[372561763,1752683448430,-457.08,0.00021095,2]
[372561764,1752683448440,-460.0,0.00021095,2]
[372561765,1752683448451,-460.0,0.00021095,2]
[372561766,1752683448462,-460.0,0.00021095,2]
[372561767,1752683448472,-460.0,0.00021095,2]
[372561768,1752683448482,-460.0,0.00021095,2]
[372561769,1752683448492,-460.0,0.00021095,2]
[372561770,1752683448503,-1119.43,0.00021095,2]
[372561771,1752683448515,-812.21,0.00021095,2]
[372561772,1752683448526,-978.5,0.00021095,2]
[372561773,1752683448536,-918.14,0.00021095,2]
[372561774,1752683448547,-460.0,0.00021095,2]
[372561775,1752683448557,-460.0,0.00021095,2]
[372561776,1752683448567,-460.0,0.00021095,2]
[372561777,1752683448578,-460.0,0.00021095,2]
[372561778,1752683448588,-460.0,0.00021095,2]
[372561779,1752683448598,-460.0,0.00021095,2]
[372561780,1752683448609,-871.14,0.00021095,2]
[372561781,1752683448620,-192.77584648,0.00021106,2]
[372561782,1752683448630,-1000.0,0.00021106,2]
[372561783,1752683448640,-734.74206615,0.0002113,2]
[372561784,1752683448651,-2147.49951982,0.00021141,4]
[372561785,1752683448661,-663.56368296,0.00021167,2]
[372561786,1752683448672,-1000.0,0.00021167,2]
[372561787,1752683448683,-2147.49951982,0.00021348,5]
[372561788,1752683448695,-2500.0,0.00021364,2]
[372561789,1752683448708,-547.72324012,0.00021369,2]
[372561790,1752683448719,-460.0,0.00021369,2]
[372561791,1752683448731,-460.0,0.00021369,2]
[372561792,1752683448741,-460.0,0.00021369,2]
[372561793,1752683448751,-460.0,0.00021369,2]
[372561794,1752683448763,-460.0,0.00021369,2]
[372561795,1752683448774,-460.0,0.00021369,2]
[372561796,1752683448786,-460.0,0.00021369,2]
[372561797,1752683448796,-460.0,0.00021369,2]
[372561798,1752683448807,-460.0,0.00021369,2]
[372561799,1752683448817,-460.0,0.00021369,2]
[372561800,1752683448827,-7344.43,0.00021369,2]
[372561801,1752683448837,-460.0,0.00021369,2]
[372561802,1752683448848,-460.0,0.00021369,2]
[372561803,1752683448858,-822.73,0.00021369,2]
[372561804,1752683448869,-581.01,0.00021369,2]
[372561805,1752683448879,-460.0,0.00021369,2]
[372561806,1752683448890,-460.0,0.00021369,2]
[372561807,1752683448901,-460.0,0.00021369,2]
[372561808,1752683448911,-460.0,0.00021369,2]
[372561809,1752683448922,-460.0,0.00021369,2]
[372561810,1752683448932,-460.0,0.00021369,2]
[372561811,1752683448944,-460.0,0.00021369,2]
[372561812,1752683448954,-839.28,0.00021369,2]
[372561813,1752683448965,-460.0,0.00021369,2]
[372561814,1752683448975,-519.32,0.00021369,2]
[372561815,1752683448986,-897.77,0.00021369,2]
[372561816,1752683448996,-1351.27,0.00021369,2]
[372561817,1752683449008,-244.78,0.00021369,2]
[372561818,1752683449018,-460.0,0.00021369,2]
[372561819,1752683449028,-460.0,0.00021369,2]
[372561820,1752683449038,-460.0,0.00021369,2]
[372561821,1752683449059,-472.36,0.00021369,2]
[372561822,1752683449079,-460.0,0.00021369,2]
[372561823,1752683449093,-2878.64,0.00021369,2]
[372561824,1752683449103,-460.0,0.00021369,2]
[372561825,1752683449114,-460.0,0.00021369,2]
[372561826,1752683449124,-1504.78,0.00021369,2]
[372561827,1752683449134,-2641.85,0.00021369,2]
[372561828,1752683449144,-460.0,0.00021369,2]
[372561829,1752683449154,-460.0,0.00021369,2]
[372561830,1752683449163,-671.12,0.00021369,2]
[372561831,1752683449173,-460.0,0.00021369,2]
[372561832,1752683449183,-642.42,0.00021369,2]
[372561833,1752683449193,-507.88,0.00021369,2]
[372561834,1752683449203,-460.0,0.00021369,2]
[372561835,1752683449213,-460.0,0.00021369,2]
[372561836,1752683449224,-460.0,0.00021369,2]
[372561837,1752683449235,-460.0,0.00021369,2]
[372561838,1752683449244,-460.0,0.00021369,2]
[372561839,1752683449254,-460.0,0.00021369,2]
[372561840,1752683449266,-460.0,0.00021369,2]
[372561841,1752683449276,-295.46,0.00021369,2]
[372561842,1752683449286,-460.0,0.00021369,2]
[372561843,1752683449296,-460.0,0.00021369,2]
[372561844,1752683449306,-1119.43,0.00021369,2]
[372561845,1752683449316,-812.21,0.00021369,2]
[372561846,1752683449326,-978.5,0.00021369,2]
[372561847,1752683449337,-918.14,0.00021369,2]
[372561848,1752683449347,-460.0,0.00021369,2]
[372561849,1752683449357,-460.0,0.00021369,2]
[372561850,1752683449368,-460.0,0.00021369,2]
[372561851,1752683449377,-460.0,0.00021369,2]
[372561852,1752683449388,-460.0,0.00021369,2]
[372561853,1752683449399,-460.0,0.00021369,2]
[372561854,1752683449408,-556.66169075,0.000214,2]
[372561855,1752683449419,-283.57159003,0.0002148,2]
[372561856,1752683449430,-207.4,0.0002148,2]
[372561857,1752683449439,-176.29657319,0.0002148,2]
[372561858,1752683449450,-215.5496034,0.00021525,2]
[372561859,1752683449461,-160.0,0.00021525,2]
[372561860,1752683449471,-160.0,0.00021525,2]
[372561861,1752683449482,-525.58295679,0.00021527,2]
[372561862,1752683449492,-160.0,0.00021527,2]
[372561863,1752683449503,-838.99048831,0.00021527,2]
[372561864,1752683449515,-160.0,0.00021528,2]
[372561865,1752683449526,-214.40824756,0.00021528,2]
[372561866,1752683449536,-160.0,0.00021528,2]
[372561867,1752683449546,-12605.49131908,0.00021528,2]
[372561868,1752683449556,-405.62947103,0.00021534,2]
[372561869,1752683449566,-1622.51788411,0.00021534,2]
[372561870,1752683449576,-3650.66523924,0.00021534,2]
[372561871,1752683449587,-6490.07153643,0.00021534,2]
[372561872,1752683449597,-10130.5960389,0.00021534,2]
[372561873,1752683449606,-4013.89011524,0.00021534,2]
[372561874,1752683449616,-360.0,0.00021546,2]
[372561875,1752683449627,-2147.49951982,0.00021555,5]
[372561876,1752683449637,-1500.0,0.00021637,2]
[372561877,1752683449647,-500.0,0.00021637,2]
[372561878,1752683449657,-275.33,0.00021643,2]
[372561879,1752683449667,-568.37,0.00021643,2]
[372561880,1752683449677,-460.0,0.00021643,2]
[372561881,1752683449687,-460.0,0.00021643,2]
[372561882,1752683449700,-460.0,0.00021643,2]
[372561883,1752683449710,-228.44,0.00021643,2]
[372561884,1752683449720,-460.0,0.00021643,2]
[372561885,1752683449731,-460.0,0.00021643,2]
[372561886,1752683449742,-460.0,0.00021643,2]
[372561887,1752683449752,-460.0,0.00021643,2]
[372561888,1752683449763,-7344.43,0.00021643,2]
[372561889,1752683449775,-460.0,0.00021643,2]
[372561890,1752683449786,-460.0,0.00021643,2]
[372561891,1752683449796,-822.73,0.00021643,2]
[372561892,1752683449806,-460.0,0.00021643,2]
[372561893,1752683449817,-404.35433971,0.00021643,2]
[372561894,1752683449828,-460.0,0.00021643,2]
[372561895,1752683449838,-172.4,0.00021643,2]
[372561896,1752683449847,-272.78,0.00021643,2]
[372561897,1752683449857,-460.0,0.00021643,2]
[372561898,1752683449866,-460.0,0.00021643,2]
[372561899,1752683449877,-839.28,0.00021643,2]
[372561900,1752683449887,-460.0,0.00021643,2]
[372561901,1752683449897,-519.32,0.00021643,2]
[372561902,1752683449907,-897.77,0.00021643,2]
[372561903,1752683449919,-1351.27,0.00021643,2]
[372561904,1752683449929,-460.0,0.00021643,2]
[372561905,1752683449939,-460.0,0.00021643,2]
[372561906,1752683449948,-460.0,0.00021643,2]
[372561907,1752683449958,-472.36,0.00021643,2]
[372561908,1752683449967,-472.36,0.00021643,2]
[372561909,1752683449977,-2878.64,0.00021643,2]
[372561910,1752683449987,-460.0,0.00021643,2]
[372561911,1752683449997,-460.0,0.00021643,2]
[372561912,1752683450007,-1504.78,0.00021643,2]
[372561913,1752683450017,-460.0,0.00021643,2]
[372561914,1752683450027,-2641.85,0.00021643,2]
[372561915,1752683450037,-460.0,0.00021643,2]
[372561916,1752683450047,-460.0,0.00021643,2]
[372561917,1752683450057,-671.12,0.00021643,2]
[372561918,1752683450066,-460.0,0.00021643,2]
[372561919,1752683450076,-642.42,0.00021643,2]
[372561920,1752683450086,-507.88,0.00021643,2]
[372561921,1752683450096,-460.0,0.00021643,2]
[372561922,1752683450106,-460.0,0.00021643,2]
[372561923,1752683450116,-460.0,0.00021643,2]
[372561924,1752683450126,-460.0,0.00021643,2]
[372561925,1752683450136,-460.0,0.00021643,2]
[372561926,1752683450146,-460.0,0.00021643,2]
[372561927,1752683450156,-460.0,0.00021643,2]
[372561928,1752683450166,-1119.43,0.00021643,2]
[372561929,1752683450175,-460.0,0.00021643,2]
[372561930,1752683450185,-812.21,0.00021643,2]
[372561931,1752683450195,-978.5,0.00021643,2]
[372561932,1752683450205,-918.14,0.00021643,2]
[372561933,1752683450215,-460.0,0.00021643,2]
[372561934,1752683450226,-460.0,0.00021643,2]
[372561935,1752683450237,-460.0,0.00021643,2]
[372561936,1752683450259,-460.0,0.00021643,2]
[372561937,1752683450269,-460.0,0.00021643,2]
[372561938,1752683450279,-460.0,0.00021643,2]
[372561939,1752683450291,-1004.37694132,0.00021654,2]
[372561940,1752683450301,-762.34660236,0.00021715,2]
[372561941,1752683450312,-2147.49951982,0.00021762,5]
[372561942,1752683450323,-172.3,0.00021801,4]
[372561943,1752683450333,-1874.42267416,0.00021908,2]
[372561944,1752683450344,-3023.25395318,0.00021912,2]
[372561945,1752683450355,-212.586219,0.00021917,2]
[372561946,1752683450365,-212.586219,0.00021917,2]
[372561947,1752683450375,-469.009508,0.00021917,2]
[372561948,1752683450386,-469.009508,0.00021917,2]
[372561949,1752683450398,-151.0,0.00021917,2]
[372561950,1752683450559,-318.36,0.00021917,2]
[372561951,1752683450570,-460.0,0.00021917,2]
[372561952,1752683450580,-460.0,0.00021917,2]
[372561953,1752683450590,-460.0,0.00021917,2]
[372561954,1752683450600,-460.0,0.00021917,2]
[372561955,1752683450610,-460.0,0.00021917,2]
[372561956,1752683450620,-554.16,0.00021917,2]
[372561957,1752683450630,-7344.43,0.00021917,2]
[372561958,1752683450639,-460.0,0.00021917,2]
[372561959,1752683450649,-460.0,0.00021917,2]
[372561960,1752683450659,-822.73,0.00021917,2]
[372561961,1752683450669,-460.0,0.00021917,2]
[372561962,1752683450679,-428.44,0.00021917,2]
[372561963,1752683450688,-460.0,0.00021917,2]
[372561964,1752683450700,-460.0,0.00021917,2]
[372561965,1752683450710,-839.28,0.00021917,2]
[372561966,1752683450720,-216.87,0.00021917,2]
[372561967,1752683450729,-519.32,0.00021917,2]
[372561968,1752683450740,-897.77,0.00021917,2]
[372561969,1752683450750,-500.0,0.00021917,2]
[372561970,1752683450762,-500.0,0.00021917,2]
[372561971,1752683450772,-500.0,0.00021917,2]
[372561972,1752683450783,-500.0,0.00021917,2]
[372561973,1752683450793,-558.76,0.00021917,2]
[372561974,1752683450802,-1351.27,0.00021917,2]
[372561975,1752683450812,-460.0,0.00021917,2]
[372561976,1752683450822,-193.88,0.00021917,2]
[372561977,1752683450831,-460.0,0.00021917,2]
[372561978,1752683450842,-472.36,0.00021917,2]
[372561979,1752683450852,-472.36,0.00021917,2]
[372561980,1752683450862,-2878.64,0.00021917,2]
[372561981,1752683450872,-460.0,0.00021917,2]
[372561982,1752683450882,-460.0,0.00021917,2]
[372561983,1752683450892,-1504.78,0.00021917,2]
[372561984,1752683450902,-460.0,0.00021917,2]
[372561985,1752683450912,-2641.85,0.00021917,2]
[372561986,1752683450922,-460.0,0.00021917,2]
[372561987,1752683450932,-292.85,0.00021917,2]